bitfinex-derivatives/quotes_SOLF0:USTF0_20250207
["timestamp","ask_amount","ask_price","bid_price","bid_amount"]
[1738920731822,5.0976,196.12,196.04,16.88188567]
[1738920732023,0.03297415,196.08,196.04,16.88188567]
[1738920732419,0.03297415,196.08,196.04,0.03795388]
[1738920742226,5.13157415,196.08,196.04,0.03795388]
[1738920743023,5.0992,196.06,196.04,0.03795388]
[1738920743431,0.03297415,196.08,196.04,0.03795388]
[1738920743625,16.91485982,196.08,196.04,0.03795388]
[1738920744129,5.0994,196.05,196.04,0.03795388]
[1738920744529,16.91485982,196.08,195.94,16.88188567]
[1738920744730,5.101,196.0,195.94,16.88188567]
[1738920745120,16.88188567,196.08,195.94,16.88188567]
[1738920745525,5.1002,196.02,195.96,5.1017]
[1738920745725,5.1002,196.02,195.99,0.03728622]
[1738920746329,5.1007,196.0,195.99,0.03728622]
[1738920746831,1.6698,196.19,195.99,33.80105756]
[1738920747026,1.6698,196.19,196.08,16.88188567]
[1738920747431,5.097,196.15,196.08,16.88188567]
[1738920747832,0.03266067,196.13,196.1,0.03728993]
[1738920749034,16.91454634,196.13,195.93,1.6398]
[1738920749333,16.88188567,196.13,196.02,16.88188567]
[1738920749534,16.88188567,196.1,195.99,16.88188567]
[1738920749733,16.88188567,196.07,195.96,16.88188567]
[1738920749929,16.88188567,196.07,195.93,18.52168567]
[1738920750133,16.88188567,196.13,196.0,16.88188567]
[1738920750330,0.03461104,196.02,195.98,0.03631889]
[1738920750534,5.0997,196.04,195.97,16.88188567]
[1738920750733,0.03639831,196.02,195.98,0.03741938]
[1738920750937,16.88188567,196.1,195.97,16.88188567]
[1738920751233,0.03488746,196.02,195.98,0.03779869]
[1738920751431,1.7009,196.09,195.97,21.98338567]
[1738920751636,0.03498793,196.02,195.98,0.03309767]
[1738920752540,0.03498793,196.02,196.0,5.1007]
[1738920752835,0.03498793,196.02,195.98,0.03309767]
[1738920754831,0.03498793,196.02,196.0,5.1007]
[1738920755030,0.03498793,196.02,195.98,0.03309767]
[1738920755836,0.03498793,196.02,195.98,5.13419767]
[1738920756637,0.03498793,196.02,195.98,0.03309767]
[1738920759034,5.1009,196.0,195.98,0.03309767]
[1738920759228,16.88188567,196.01,195.98,0.03309767]
[1738920759934,16.88188567,196.01,195.87,1.6829]
[1738920760135,16.88188567,195.98,195.88,2.3529]
[1738920760633,16.88188567,195.95,195.88,2.3529]
[1738920761035,0.03616823,195.93,195.9,0.03402469]
[1738920765042,16.88188567,195.92,195.9,0.03402469]
[1738920765639,5.1031,195.91,195.9,0.03402469]
[1738920765838,16.88188567,195.92,195.82,2.3738]
[1738920766041,5.1041,195.87,195.82,2.3738]
[1738920766944,0.03693441,195.86,195.83,0.03742483]
[1738920768639,5.14133441,195.86,195.83,0.03742483]
[1738920768949,0.03693441,195.86,195.83,0.03742483]
[1738920773351,16.91882008,195.86,195.83,0.03742483]
[1738920773941,16.88188567,195.98,195.85,16.88188567]
[1738920774353,1.5738,195.97,195.84,1.6433]
[1738920774650,16.88188567,195.95,195.84,1.6433]
[1738920774852,16.88188567,196.01,195.88,16.88188567]
[1738920775151,0.03828931,195.91,195.9,5.1033]
[1738920775352,5.1013,195.98,195.9,5.1033]
[1738920775551,0.03770608,195.92,195.9,5.1033]
[1738920775747,1.612,196.02,195.91,16.88188567]
[1738920775952,16.88188567,196.07,195.95,16.88188567]
[1738920776252,0.03249338,195.98,195.95,16.88188567]
[1738920776459,16.88188567,196.07,195.99,0.03773766]
[1738920776646,5.0997,196.04,195.96,5.1017]
[1738920776949,0.03741762,196.05,196.01,0.03647524]
[1738920777146,0.03741762,196.05,195.97,26.9710221]
[1738920777355,0.03462864,196.03,195.99,5.13761781]
[1738920777652,0.03462864,196.03,195.99,0.03661781]
[1738920779051,0.03462864,196.03,196.01,5.1004]
[1738920779451,0.03462864,196.03,195.99,5.13741781]
[1738920779644,0.03462864,196.03,195.99,0.03661781]
[1738920781149,26.9710221,196.02,195.85,82.06640089]
[1738920781353,5.1021,195.95,195.86,26.02875828]
[1738920781750,26.9710221,195.99,195.86,20.92445828]
[1738920781950,26.9710221,195.93,195.86,20.92445828]
[1738920782355,5.1036,195.89,195.88,0.03839068]
[1738920782652,26.9710221,195.9,195.86,20.92445828]
[1738920782851,26.9710221,195.9,195.86,19.20771753]
[1738920783246,26.9710221,195.87,195.86,19.20771753]
[1738920783445,32.0751221,195.87,195.86,16.74041753]
[1738920784451,5.1041,195.87,195.86,16.74041753]
[1738920784853,5.1041,195.87,195.85,0.03924189]
[1738920785651,0.03434597,195.88,195.85,0.03924189]
[1738920786254,5.13824597,195.88,195.85,0.03924189]
[1738920787158,0.03434597,195.88,195.85,0.03924189]
[1738920788554,5.1044,195.86,195.85,0.03924189]
[1738920793556,0.03434597,195.88,195.85,0.03924189]
[1738920794157,5.1024,195.94,195.87,5.1039]
[1738920794358,26.9710221,195.97,195.88,1.5863]
[1738920795362,5.1028,195.93,195.91,0.03406738]
[1738920796058,0.03602997,195.94,195.91,0.03406738]
[1738920796059,5.1028,195.92,195.91,0.03406738]
[1738920799263,5.1045,195.86,195.83,1.5574]
[1738920800373,5.14196523,195.86,195.83,0.03823347]
[1738920801269,0.03746523,195.86,195.83,0.03823347]
[1738920801574,26.9710221,195.94,195.83,0.03823347]
[1738920801766,26.9710221,195.94,195.77,26.9710221]
[1738920802165,5.1033,195.91,195.84,5.1046]
[1738920802364,26.9710221,195.94,195.85,1.4889]
[1738920802561,0.03361486,195.91,195.85,1.4889]
[1738920802759,27.00463696,195.91,195.86,0.03765355]
[1738920803469,5.1044,195.87,195.86,0.03765355]
[1738920804169,5.1039,195.88,195.86,0.03765355]
[1738920804670,0.03361486,195.91,195.86,0.03765355]
[1738920805168,5.1036,195.89,195.86,0.03765355]
[1738920806976,5.1039,195.88,195.86,0.03765355]
[1738920807567,5.1036,195.89,195.86,0.03765355]
[1738920808970,0.03361486,195.91,195.86,0.03765355]
[1738920809774,5.1038,195.89,195.86,0.03765355]
[1738920810073,27.00463696,195.91,195.86,0.03765355]
[1738920810775,5.1041,195.87,195.86,0.03765355]
[1738920812972,5.1038,195.89,195.86,0.03765355]
[1738920814175,5.1039,195.88,195.86,0.03765355]
[1738920814377,0.03361486,195.91,195.86,0.03765355]
[1738920814970,27.00463696,195.91,195.86,0.03765355]
[1738920815577,5.1041,195.87,195.86,0.03765355]
[1738920815874,0.03361486,195.91,195.86,0.03765355]
[1738920816674,5.13671486,195.91,195.86,5.14175355]
[1738920816873,0.03361486,195.91,195.86,0.03765355]
[1738920817871,48.17702061,196.03,195.86,27.00867565]
[1738920818075,5.1013,195.98,195.91,5.1028]
[1738920818272,48.17702061,196.03,195.86,26.9710221]
[1738920818972,0.03246654,195.96,195.93,0.03819542]
[1738920819176,48.17702061,196.03,195.93,0.03819542]
[1738920819479,0.03759011,195.96,195.93,0.03819542]
[1738920819679,0.03501821,195.96,195.93,0.03819542]
[1738920820272,5.1023,195.94,195.93,0.03819542]
[1738920821881,5.102,195.95,195.93,0.03819542]
[1738920823484,5.1023,195.94,195.93,0.03819542]
[1738920823983,5.1021,195.95,195.93,0.03819542]
[1738920824186,0.03501821,195.96,195.93,0.03819542]
[1738920824584,5.102,195.95,195.93,0.03819542]
[1738920826179,0.03501821,195.96,195.93,0.03819542]
[1738920826383,5.1023,195.94,195.93,0.03819542]
[1738920826584,0.03501821,195.96,195.93,0.03819542]
[1738920826881,5.1022,195.95,195.93,0.03819542]
[1738920827786,0.03501821,195.96,195.93,0.03819542]
[1738920828785,4.21204991,195.95,195.93,0.03819542]
[1738920828989,1.73174991,195.95,195.93,0.03819542]
[1738920829182,0.03501821,195.96,195.93,0.03819542]
[1738920832888,5.1023,195.94,195.93,0.03819542]
[1738920841095,4.18313857,195.94,195.86,1.603]
[1738920841287,4.18313857,195.94,195.87,5.1041]
[1738920841691,4.18313857,195.93,195.86,1.603]
[1738920842186,4.18313857,195.93,195.88,0.03705627]
[1738920842388,0.03231387,195.91,195.88,0.03705627]
[1738920842592,5.13561387,195.91,195.88,0.03705627]
[1738920842896,4.18313857,195.9,195.88,0.03705627]
[1738920843394,4.18313857,195.89,195.88,0.03705627]
[1738920844195,9.28673857,195.89,195.88,0.03705627]
[1738920849402,4.18313857,195.89,195.88,0.03705627]
[1738920852295,9.28673857,195.89,195.88,0.03705627]
[1738920853197,5.1054,195.82,195.81,1.5188]
[1738920853396,5.1054,195.82,195.78,7.00342091]
[1738920853600,9.28853857,195.82,195.78,7.00342091]
[1738920854302,4.18313857,195.81,195.78,7.04141192]
[1738920854894,5.1059,195.8,195.78,7.04141192]
[1738920855201,9.28903857,195.8,195.78,7.04141192]
[1738920855603,4.18313857,195.79,195.78,7.04141192]
[1738920857005,4.18313857,195.79,195.78,0.03799101]
[1738920862109,9.28933857,195.79,195.78,0.03799101]
[1738920863005,4.18313857,195.79,195.78,0.03799101]
[1738920863210,0.03649328,195.82,195.78,16.91720781]
[1738920863711,0.03649328,195.82,195.78,0.03799101]
[1738920865316,5.1059,195.81,195.78,0.03799101]
[1738920865517,0.03649328,195.82,195.78,0.03799101]
[1738920866022,0.03649328,195.82,195.78,5.14439101]
[1738920866214,0.03649328,195.82,195.78,0.03799101]
[1738920867114,5.1057,195.81,195.78,0.03799101]
[1738920868220,0.03649328,195.82,195.78,0.03799101]
[1738920870919,0.03649328,195.82,195.78,1.60269101]
[1738920871621,16.8792168,195.91,195.79,16.8792168]
[1738920871817,16.8792168,195.91,195.8,1.599]
[1738920872017,5.1036,195.89,195.82,5.1052]
[1738920872518,16.8792168,195.91,195.82,5.1052]
[1738920872913,0.03921961,195.88,195.85,0.03430002]
[1738920873619,5.14301961,195.88,195.85,0.03430002]
[1738920875519,0.03921961,195.88,195.86,5.1043]
[1738920875713,0.03921961,195.88,195.85,0.03430002]
[1738920876114,0.03921961,195.88,195.86,5.1044]
[1738920876810,0.03921961,195.88,195.85,5.13890002]
[1738920878218,0.03921961,195.88,195.85,0.03430002]
[1738920888737,5.14321961,195.88,195.85,0.03430002]
[1738920889137,0.03921961,195.88,195.85,0.03430002]
[1738920889338,5.1041,195.87,195.85,0.03430002]
[1738920890235,5.14311961,195.88,195.85,0.03430002]
[1738920890542,0.03921961,195.88,195.85,0.03430002]
[1738920891242,10.84300814,195.88,195.85,0.03430002]
[1738920891434,5.1044,195.86,195.85,0.03430002]
[1738920892736,15.90818853,195.86,195.85,0.03430002]
[1738920895435,0.03921961,195.88,195.85,0.03430002]
[1738920895741,0.03921961,195.88,195.85,10.83808855]
[1738920896139,0.03921961,195.88,195.85,0.03430002]
[1738920900339,0.03921961,195.88,195.85,10.83808855]
[1738920901146,0.03921961,195.88,195.86,5.1044]
[1738920901346,0.03921961,195.88,195.85,0.03430002]
[1738920902642,0.03921961,195.88,195.85,10.83808855]
[1738920903645,0.03921961,195.88,195.86,5.1044]
[1738920905044,0.03921961,195.88,195.85,0.03430002]
[1738920905342,10.84300814,195.88,195.85,0.03430002]
[1738920905947,0.03921961,195.88,195.85,0.03430002]
[1738920909154,0.03921961,195.88,195.86,5.1043]
[1738920910460,0.03921961,195.88,195.85,10.83808855]
[1738920910651,0.03921961,195.88,195.87,5.1041]
[1738920911051,0.03921961,195.88,195.87,15.90788853]
[1738920911251,10.80378853,195.96,195.9,5.1033]
[1738920911449,10.80378853,195.98,195.91,10.80378853]
[1738920911654,21.20599851,196.05,195.87,1.5939]
[1738920911655,10.80378853,196.0,195.93,10.80378853]
[1738920911957,10.80378853,196.0,195.94,5.1022]
[1738920912359,0.0347133,195.99,195.95,10.83851244]
[1738920912554,0.0347133,195.99,195.97,10.80378853]
[1738920915665,10.80378853,196.06,195.97,10.80378853]
[1738920915850,10.80378853,196.06,195.99,10.80378853]
[1738920916855,0.03277287,196.04,196.01,0.03788954]
[1738920917660,0.03277287,196.04,196.01,10.84167807]
[1738920917861,0.03277287,196.04,196.03,10.80378853]
[1738920918664,10.80378853,196.1,196.04,5.0997]
[1738920919464,10.80378853,196.1,196.03,15.90368853]
[1738920919662,10.80378853,196.1,196.03,10.80378853]
[1738920919965,0.03704053,196.08,196.05,10.83710594]
[1738920920161,10.80378853,196.12,196.05,10.80378853]
[1738920920363,0.03486688,196.08,196.05,10.84291181]
[1738920921105,0.03486688,196.08,196.05,0.03912328]
[1738920922661,10.83865541,196.08,196.05,0.03912328]
[1738920923469,10.80378853,196.06,196.05,0.03912328]
[1738920923864,15.90298853,196.06,196.05,0.03912328]
[1738920924161,10.80378853,196.06,195.95,15.90558853]
[1738920924470,10.80378853,196.01,195.95,15.90558853]
[1738920925169,0.03751734,196.0,195.96,0.03412094]
[1738920934773,10.80378853,195.97,195.96,0.03412094]
[1738920935074,10.80378853,195.99,195.96,0.03412094]
[1738920935267,0.03751734,196.0,195.96,0.03412094]
[1738920938574,5.13851734,196.0,195.96,0.03412094]
[1738920938975,0.03751734,196.0,195.96,0.03412094]
[1738920939177,15.90478853,195.99,195.96,0.03412094]
[1738920939871,5.1013,195.98,195.96,0.03412094]
[1738920940077,10.80378853,195.99,195.96,0.03412094]
[1738920940377,10.80378853,195.97,195.96,0.03412094]
[1738920940774,10.80378853,195.99,195.96,0.03412094]
[1738920942975,10.80378853,195.97,195.96,0.03412094]
[1738920943173,15.90528853,195.97,195.96,0.03412094]
[1738920947286,5.1023,195.94,195.89,5.1035]
[1738920947583,15.90608853,195.94,195.89,5.1035]
[1738920947985,15.90608853,195.94,195.87,10.80378853]
[1738920947986,5.1028,195.93,195.88,5.1038]
[1738920948180,5.1028,195.93,195.87,10.80378853]
[1738920948383,0.03627745,195.92,195.89,0.03415382]
[1738920949886,5.13907745,195.92,195.89,0.03415382]
[1738920951087,0.03627745,195.92,195.89,10.83794235]
[1738920953992,0.03627745,195.92,195.89,0.03415382]
[1738920960891,5.13907745,195.92,195.89,0.03415382]
[1738920961697,0.03627745,195.92,195.89,0.03415382]
[1738920964199,0.03627745,195.92,195.91,10.80378853]
[1738920965506,15.90468853,196.0,195.93,5.1023]
[1738920965799,15.90468853,196.0,195.94,10.80378853]
[1738920966600,0.03302925,195.99,195.95,0.03784835]
[1738920966803,10.80378853,195.98,195.95,0.03784835]
[1738920967204,5.1015,195.97,195.95,0.03784835]
[1738920967808,0.03302925,195.99,195.95,0.03784835]
[1738920968710,0.03302925,195.99,195.96,10.80378853]
[1738920969709,0.03302925,195.99,195.97,5.1015]
[1738920969903,0.03302925,195.99,195.98,10.80378853]
[1738920970211,10.80378853,196.06,195.98,10.80378853]
[1738920970408,10.80378853,196.06,196.0,10.80378853]
[1738920970999,10.80378853,196.06,196.0,15.90448853]
[1738920971406,0.0324703,196.05,196.01,0.0323274]
[1738920972916,0.0324703,196.05,196.01,5.1327274]
[1738920977310,0.0324703,196.05,196.01,0.0323274]
[1738920977511,10.80378853,196.04,196.01,0.0323274]
[1738920978816,10.80378853,196.02,196.01,0.0323274]
[1738920980021,0.0324703,196.05,196.01,0.0323274]
[1738920980022,10.80378853,196.04,196.01,0.0323274]
[1738920980514,0.0324703,196.05,196.01,0.0323274]
[1738920981120,12.36696087,196.2,196.01,0.0323274]
[1738920981310,10.80378853,196.19,196.11,10.80378853]
[1738920981512,10.80378853,196.19,196.11,15.90158853]
[1738920981513,15.89968853,196.19,196.11,15.90158853]
[1738920982416,10.84122529,196.17,196.13,0.03737668]
[1738920988725,0.03743676,196.17,196.15,5.0966]
[1738920988919,0.03743676,196.17,196.13,10.84116521]
[1738920989627,0.03743676,196.17,196.15,10.80378853]
[1738920989929,0.03743676,196.17,196.15,15.90038853]
[1738920991124,0.03743676,196.17,196.15,10.80378853]
[1738920991331,0.03743676,196.17,196.16,5.0966]
[1738920991525,10.80378853,196.23,196.15,10.80378853]
[1738920991721,10.80378853,196.23,196.17,10.80378853]
[1738920992128,10.80378853,196.23,196.18,5.0958]
[1738920992324,10.80378853,196.23,196.17,10.80378853]
[1738920992728,0.03789466,196.22,196.18,0.03910588]
[1738920994331,5.13299466,196.22,196.18,0.03910588]
[1738920994933,0.03789466,196.22,196.19,10.80378853]
[1738920995233,0.03789466,196.22,196.18,0.03910588]
[1738920996633,5.13289466,196.22,196.18,0.03910588]
[1738920997631,0.03789466,196.22,196.18,0.03910588]
[1738920997836,0.03789466,196.22,196.18,5.13510588]
[1738920999334,0.03789466,196.22,196.18,0.03910588]
[1738920999537,0.03789466,196.22,196.2,5.0955]
[1738920999734,0.03789466,196.22,196.19,10.80378853]
[1738920999935,10.80378853,196.29,196.23,5.0947]
[1738921000131,10.80378853,196.31,196.24,10.80378853]
[1738921000437,10.80378853,196.33,196.28,10.80378853]
[1738921001035,0.03891772,196.32,196.29,0.03611302]
[1738921001334,0.03891772,196.32,196.3,10.80378853]
[1738921002134,10.84270625,196.32,196.29,0.03611302]
[1738921002844,10.80378853,196.3,196.29,0.03611302]
[1738921003338,15.89668853,196.3,196.29,0.03611302]
[1738921006138,10.80378853,196.3,196.29,0.03611302]
[1738921007041,15.89668853,196.3,196.29,0.03611302]
[1738921012338,5.0948,196.23,196.18,10.80378853]
[1738921012641,10.80378853,196.25,196.18,10.80378853]
[1738921013142,5.0945,196.24,196.18,10.80378853]
[1738921013641,0.03646319,196.23,196.19,0.03473267]
[1738921013837,0.03646319,196.23,196.21,10.80378853]
[1738921015032,0.03646319,196.23,196.19,10.8385212]
[1738921016743,0.03646319,196.23,196.19,15.9341212]
[1738921016938,0.03646319,196.23,196.19,10.8385212]
[1738921017429,10.84025172,196.23,196.19,0.03473267]
[1738921017833,5.0951,196.22,196.19,0.03473267]
[1738921018443,5.0953,196.21,196.19,0.03473267]
[1738921019147,5.0951,196.22,196.19,0.03473267]
[1738921020547,5.0952,196.22,196.19,0.03473267]
[1738921022744,0.03646319,196.23,196.19,10.8385212]
[1738921022944,0.03646319,196.23,196.21,10.80378853]
[1738921024535,10.80378853,196.33,196.21,10.80378853]
[1738921024740,10.80378853,196.33,196.26,10.80378853]
[1738921025137,5.0927,196.31,196.26,10.80378853]
[1738921025946,0.03748588,196.3,196.27,0.03465088]
[1738921027851,0.03748588,196.3,196.27,5.12835088]
[1738921028350,0.03748588,196.3,196.27,0.03465088]
[1738921028544,0.03748588,196.3,196.28,10.80378853]
[1738921029146,0.03748588,196.3,196.28,12.32398853]
[1738921029346,5.0911,196.38,196.28,12.32398853]
[1738921029543,5.0911,196.38,196.32,10.80378853]
[1738921029746,11.30378853,196.39,196.32,10.80378853]
[1738921029948,0.5,196.39,196.34,10.80378853]
[1738921030247,0.5,196.39,196.33,5.0919]
[1738921030649,0.03651005,196.38,196.34,0.03706609]
[1738921032153,0.03651005,196.38,196.34,5.12886609]
[1738921034352,0.03651005,196.38,196.34,0.03706609]
[1738921034744,0.03651005,196.38,196.37,5.0911]
[1738921035855,16.80059003,196.49,196.36,4.6817]
[1738921036056,16.80059003,196.46,196.36,4.6817]
[1738921036958,0.03911421,196.43,196.39,0.03370795]
[1738921037154,16.83970424,196.43,196.39,0.03370795]
[1738921038856,5.0903,196.4,196.39,0.03370795]
[1738921040856,5.0901,196.41,196.39,0.03370795]
[1738921042162,5.12881421,196.43,196.39,0.03370795]
[1738921043453,5.0903,196.41,196.39,0.03370795]
[1738921043857,5.0899,196.42,196.39,0.03370795]
[1738921044053,0.03911421,196.43,196.39,0.03370795]
[1738921044464,5.0903,196.41,196.39,0.03370795]
[1738921044964,0.03911421,196.43,196.39,0.03370795]
[1738921044965,5.0903,196.4,196.39,0.03370795]
[1738921048956,21.92930424,196.43,196.39,5.12410795]
[1738921049266,0.03911421,196.43,196.39,0.03370795]
[1738921050563,5.12891421,196.43,196.39,0.03370795]
[1738921051766,0.03911421,196.43,196.39,0.03370795]
[1738921052174,0.19534,196.5,196.41,16.80059003]
[1738921052473,0.19534,196.5,196.44,21.88969003]
[1738921052969,0.19534,196.5,196.44,5.0891]
[1738921053368,0.03665696,196.49,196.45,0.03898018]
[1738921055264,5.12465696,196.49,196.45,0.03898018]
[1738921056767,0.03665696,196.49,196.45,0.03898018]
[1738921058766,16.80059003,196.61,196.47,16.80059003]
[1738921058970,5.0857,196.58,196.52,5.0872]
[1738921059372,16.80059003,196.61,196.52,5.0872]
[1738921059973,0.03393336,196.58,196.55,0.03242818]
[1738921061979,16.83452339,196.58,196.55,0.03242818]
[1738921062878,16.83452339,196.58,196.44,16.80059003]
[1738921063078,16.80059003,196.55,196.44,16.80059003]
[1738921063279,5.0871,196.53,196.46,5.0888]
[1738921064178,0.03436277,196.51,196.48,0.03312298]
[1738921065279,16.80059003,196.68,196.5,16.80059003]
[1738921065476,16.80059003,196.68,196.55,16.80059003]
[1738921065677,5.0836,196.66,196.55,16.80059003]
[1738921065884,16.80059003,196.68,196.55,16.80059003]
[1738921066277,5.084,196.65,196.57,5.0857]
[1738921066581,0.03219031,196.63,196.6,0.03601795]
[1738921068786,5.11659031,196.63,196.6,0.03601795]
[1738921069089,0.03219031,196.63,196.6,0.03601795]
[1738921069587,5.0847,196.62,196.6,0.03601795]
[1738921070282,5.0849,196.61,196.6,0.03601795]
[1738921070481,16.80059003,196.61,196.46,16.80059003]
[1738921070886,16.80059003,196.58,196.46,16.80059003]
[1738921071084,5.0862,196.57,196.46,16.80059003]
[1738921071684,0.0355472,196.53,196.5,0.03338196]
[1738921072386,0.0355472,196.53,196.5,5.12108196]
[1738921075084,0.0355472,196.53,196.5,0.03338196]
[1738921076390,0.0355472,196.53,196.5,5.12098196]
[1738921079392,0.0355472,196.53,196.51,5.0874]
[1738921080493,0.0355472,196.53,196.5,0.03338196]
[1738921080688,0.0355472,196.53,196.5,5.12108196]
[1738921081489,0.0355472,196.53,196.5,0.03338196]
[1738921081989,5.0875,196.51,196.5,0.03338196]
[1738921082992,5.0886,196.47,196.41,5.0901]
[1738921083191,5.0886,196.47,196.39,28.49891094]
[1738921083399,16.80059003,196.52,196.39,28.49891094]
[1738921083695,5.0885,196.48,196.39,28.49891094]
[1738921083896,16.80059003,196.52,196.4,5.0903]
[1738921084097,0.03322427,196.47,196.44,0.03290131]
[1738921084787,5.12202427,196.47,196.44,0.03290131]
[1738921084991,0.03322427,196.47,196.44,0.03290131]
[1738921085497,5.089,196.45,196.44,0.03290131]
[1738921086199,5.0889,196.46,196.44,0.03290131]
[1738921086699,0.03322427,196.47,196.44,0.03290131]
[1738921086896,5.089,196.45,196.44,0.03290131]
[1738921088293,0.03322427,196.47,196.33,21.47769003]
[1738921088501,5.0898,196.42,196.36,5.0913]
[1738921088696,16.80059003,196.46,196.33,21.47769003]
[1738921088992,1.4971,196.45,196.33,21.47769003]
[1738921089205,16.80059003,196.43,196.33,4.6771]
[1738921089697,0.03599792,196.4,196.36,0.03519423]
[1738921089900,5.12639792,196.4,196.36,0.03519423]
[1738921090599,0.03599792,196.4,196.36,0.03519423]
[1738921090997,0.03599792,196.4,196.36,5.12649423]
[1738921091196,0.03599792,196.4,196.36,0.03519423]
[1738921095610,5.12639792,196.4,196.36,0.03519423]
[1738921097507,0.03599792,196.4,196.36,0.03519423]
[1738921099514,5.12639792,196.4,196.36,0.03519423]
[1738921101715,5.0907,196.39,196.36,0.03519423]
[1738921102917,0.03599792,196.4,196.36,0.03519423]
[1738921104112,5.12629792,196.4,196.36,0.03519423]
[1738921104712,5.0906,196.39,196.36,0.03519423]
[1738921105312,5.12659792,196.4,196.36,0.03519423]
[1738921107613,5.0907,196.39,196.36,0.03519423]
[1738921110416,10.75116243,196.37,196.29,10.75116243]
[1738921110612,10.75116243,196.35,196.27,10.75116243]
[1738921110813,10.75116243,196.33,196.27,10.75116243]
[1738921111419,10.75116243,196.33,196.27,15.84476243]
[1738921111719,0.03868296,196.32,196.29,10.75116243]
[1738921111914,10.75116243,196.35,196.29,10.75116243]
[1738921112114,0.03515376,196.32,196.29,10.78743976]
[1738921112716,5.12765376,196.32,196.29,0.03627733]
[1738921113425,0.03515376,196.32,196.29,0.03627733]
[1738921115313,5.12755376,196.32,196.29,0.03627733]
[1738921118225,5.0927,196.31,196.29,0.03627733]
[1738921118427,0.03515376,196.32,196.29,0.03627733]
[1738921118827,5.0929,196.31,196.29,0.03627733]
[1738921119022,0.03515376,196.32,196.29,0.03627733]
[1738921119424,5.0929,196.3,196.29,0.03627733]
[1738921120127,16.80966727,196.31,196.18,16.80966727]
[1738921120527,16.80966727,196.31,196.21,16.80966727]
[1738921120829,5.093,196.3,196.25,5.094]
[1738921121128,5.093,196.3,196.21,16.80966727]
[1738921121325,5.0937,196.27,196.26,0.03719999]
[1738921123125,16.80966727,196.28,196.15,44.87504918]
[1738921123324,1.5617,196.26,196.15,44.87504918]
[1738921123526,16.80966727,196.25,196.15,16.80966727]
[1738921124131,5.0955,196.2,196.18,0.03254675]
[1738921125033,5.0958,196.2,196.18,0.03254675]
[1738921125529,5.0955,196.21,196.18,0.03254675]
[1738921127032,5.13393524,196.22,196.18,0.03254675]
[1738921127231,0.03893524,196.22,196.18,0.03254675]
[1738921127629,0.03893524,196.22,196.18,5.12834675]
[1738921127824,0.03893524,196.22,196.18,0.03254675]
[1738921128230,5.0955,196.21,196.18,0.03254675]
[1738921129134,0.03893524,196.22,196.18,0.03254675]
[1738921129628,5.0958,196.2,196.14,5.0969]
[1738921129933,16.80966727,196.17,196.04,28.06538191]
[1738921130130,0.03893524,196.22,196.1,16.80966727]
[1738921130330,16.80966727,196.24,196.14,5.0968]
[1738921130836,0.03841128,196.21,196.17,0.03732588]
[1738921131933,5.0958,196.2,196.17,0.03732588]
[1738921132134,16.84807855,196.21,196.17,0.03732588]
[1738921132334,5.096,196.18,196.17,0.03732588]
[1738921134629,15.87199129,196.18,196.17,0.03732588]
[1738921135031,5.0975,196.13,196.06,10.77599129]
[1738921135325,10.77599129,196.11,196.05,5.0994]
[1738921135535,5.0984,196.1,196.04,10.77599129]
[1738921135934,5.0984,196.1,196.04,15.87559129]
[1738921136132,0.03340905,196.09,196.05,0.03278868]
[1738921136331,5.13180905,196.09,196.05,0.03278868]
[1738921136730,0.03340905,196.09,196.05,0.03278868]
[1738921137632,5.0992,196.06,196.05,0.03278868]
[1738921140344,4.91310905,196.09,196.05,0.03278868]
[1738921140629,6.77310905,196.09,196.05,0.03278868]
[1738921140836,1.67470905,196.09,196.05,0.03278868]
[1738921141036,5.0992,196.06,196.05,0.03278868]
[1738921141737,5.0987,196.08,196.05,0.03278868]
[1738921142837,0.03340905,196.09,196.05,0.03278868]
[1738921142838,5.0989,196.07,196.05,0.03278868]
[1738921143237,0.03340905,196.09,196.05,0.03278868]
[1738921143837,0.03340905,196.09,196.06,16.85027803]
[1738921144828,0.03340905,196.09,196.08,5.0986]
[1738921145640,1.6093,196.18,196.08,5.0986]
[1738921145939,1.6093,196.18,196.07,3.1977]
[1738921146139,1.6093,196.18,196.07,8.2966]
[1738921146339,5.0968,196.15,196.07,3.1977]
[1738921146933,0.03555351,196.13,196.09,0.03657456]
[1738921152440,5.0979,196.11,196.09,0.03657456]
[1738921152643,16.88583154,196.13,196.09,0.03657456]
[1738921152838,5.0981,196.1,196.09,0.03657456]
[1738921153040,16.88583154,196.13,196.09,0.03657456]
[1738921153346,5.0979,196.11,196.09,0.03657456]
[1738921153943,16.88583154,196.13,196.09,0.03657456]
[1738921154538,0.03555351,196.13,196.09,0.03657456]
[1738921155744,5.0977,196.12,196.09,0.03657456]
[1738921156348,5.0979,196.11,196.09,0.03657456]
[1738921156644,0.03555351,196.13,196.09,0.03657456]
[1738921159745,0.03555351,196.13,196.1,5.098]